fUST/lending_fUST_20250719
["ID","MTS","AMOUNT","RATE_DAILY","PERIOD"]
[373227366,1752916255407,-769.32,0.00018503,2]
[373227367,1752916255417,-1239.35,0.00018503,2]
[373227368,1752916255426,-460.0,0.00018503,2]
[373227369,1752916255436,-460.0,0.00018503,2]
[373227370,1752916255446,-460.0,0.00018503,2]
[373227371,1752916255456,-1133.93,0.00018503,2]
[373227372,1752916255466,-460.0,0.00018503,2]
[373227373,1752916255476,-460.0,0.00018503,2]
[373227374,1752916255486,-460.0,0.00018504,2]
[373227375,1752916255496,-460.0,0.00018504,2]
[373227376,1752916255506,-151.0,0.00018504,2]
[373227377,1752916255515,-151.0,0.00018504,2]
[373227378,1752916255525,-151.0,0.00018504,2]
[373227379,1752916255534,-151.0,0.00018504,2]
[373227380,1752916255544,-151.0,0.00018504,2]
[373227381,1752916255553,-151.0,0.00018504,2]
[373227382,1752916255562,-151.0,0.00018504,2]
[373227383,1752916255573,-151.0,0.00018508,2]
[373227384,1752916255582,-1500.0,0.00018516,2]
[373227385,1752916255591,-6730.03034245,0.00018562,2]
[373227386,1752916255602,-6108.5604731,0.00018624,2]
[373227387,1752916255611,-1500.0,0.00018668,2]
[373227388,1752916255621,-1500.0,0.00018668,2]
[373227389,1752916255630,-1515.49700616,0.00018668,2]
[373227390,1752916255640,-1500.0,0.00018668,2]
[373227391,1752916255650,-1500.0,0.00018668,2]
[373227392,1752916255660,-411.94009619,0.00018668,2]
[373227393,1752916255670,-151.0,0.00018728,2]
[373227394,1752916255680,-151.0,0.00018728,2]
[373227395,1752916255690,-360.0,0.00018753,2]
[373227396,1752916255786,-460.0,0.00018774,2]
[373227397,1752916255798,-5133.69,0.00018774,2]
[373227398,1752916255807,-460.0,0.00018775,2]
[373227399,1752916255817,-460.0,0.00018775,2]
[373227400,1752916255827,-2916.31,0.00018775,2]
[373227401,1752916255836,-2071.08,0.00018775,2]
[373227402,1752916255847,-677.36,0.00018775,2]
[373227403,1752916255861,-460.0,0.00018775,2]
[373227404,1752916255871,-151.0,0.00018775,2]
[373227405,1752916255881,-2419.91,0.00018775,2]
[373227406,1752916255890,-151.0,0.00018775,2]
[373227407,1752916255901,-460.0,0.00018775,2]
[373227408,1752916255910,-460.0,0.00018775,2]
[373227409,1752916255920,-418.298156,0.00018775,2]
[373227410,1752916255930,-418.298156,0.00018775,2]
[373227411,1752916255939,-1354.34,0.00018775,2]
[373227412,1752916255949,-1223.81,0.00018775,2]
[373227413,1752916255959,-460.0,0.00018775,2]
[373227414,1752916255969,-460.0,0.00018775,2]
[373227415,1752916255978,-551.44,0.00018775,2]
[373227416,1752916255989,-1938.71,0.00018775,2]
[373227417,1752916255998,-472.36,0.00018775,2]
[373227418,1752916256008,-460.0,0.00018775,2]
[373227419,1752916256018,-744.37,0.00018775,2]
[373227420,1752916256028,-151.0,0.00018775,2]
[373227421,1752916256038,-460.0,0.00018776,2]
[373227422,1752916256047,-460.0,0.00018776,2]
[373227423,1752916256057,-460.0,0.00018776,2]
[373227424,1752916256066,-460.0,0.00018776,2]
[373227425,1752916256076,-460.0,0.00018776,2]
[373227426,1752916256086,-460.0,0.00018776,2]
[373227427,1752916256097,-460.0,0.00018776,2]
[373227428,1752916256108,-460.0,0.00018776,2]
[373227429,1752916256117,-460.0,0.00018776,2]
[373227430,1752916256126,-460.0,0.00018776,2]
[373227431,1752916256136,-514.48,0.00018776,2]
[373227432,1752916256146,-460.0,0.00018776,2]
[373227433,1752916256156,-460.0,0.00018776,2]
[373227434,1752916256166,-564.82257374,0.00018776,2]
[373227435,1752916256175,-151.0,0.00018776,2]
[373227436,1752916256186,-3376.62,0.00018776,2]
[373227437,1752916256195,-512.86,0.00018776,2]
[373227438,1752916256204,-229.87535684,0.00018776,2]
[373227439,1752916256213,-935.98,0.00018776,2]
[373227440,1752916256224,-460.0,0.00018776,2]
[373227441,1752916256234,-460.0,0.00018776,2]
[373227442,1752916256243,-460.0,0.00018776,2]
[373227443,1752916256253,-1358.61,0.00018776,2]
[373227444,1752916256262,-460.0,0.00018776,2]
[373227445,1752916256271,-460.0,0.00018777,2]
[373227446,1752916256281,-460.0,0.00018777,2]
[373227447,1752916256290,-820.72,0.00018777,2]
[373227448,1752916256300,-460.0,0.00018777,2]
[373227449,1752916256309,-1223.5,0.00018777,2]
[373227450,1752916256319,-1245.9,0.00018777,2]
[373227451,1752916256328,-460.0,0.00018777,2]
[373227452,1752916256337,-665.09,0.00018777,2]
[373227453,1752916256348,-460.0,0.00018777,2]
[373227454,1752916256358,-769.32,0.00018777,2]
[373227455,1752916256367,-1239.35,0.00018777,2]
[373227456,1752916256376,-460.0,0.00018777,2]
[373227457,1752916256385,-460.0,0.00018777,2]
[373227458,1752916256394,-460.0,0.00018777,2]
[373227459,1752916256404,-1133.93,0.00018777,2]
[373227460,1752916256413,-460.0,0.00018777,2]
[373227461,1752916256422,-460.0,0.00018777,2]
[373227462,1752916256432,-460.0,0.00018778,2]
[373227463,1752916256441,-151.0,0.00018778,2]
[373227464,1752916256451,-293.036372,0.00018778,2]
[373227465,1752916256461,-293.036372,0.00018778,2]
[373227466,1752916256470,-345.030276,0.00018778,2]
[373227467,1752916256479,-345.030276,0.00018778,2]
[373227468,1752916256489,-151.0,0.00018779,2]
[373227469,1752916256498,-151.0,0.00018781,2]
[373227470,1752916256508,-2343.3317578,0.00018794,2]
[373227471,1752916256517,-500.0,0.00018794,2]
[373227472,1752916256527,-500.0,0.00018794,2]
[373227473,1752916256537,-500.0,0.00018794,2]
[373227474,1752916256547,-502.72941555,0.00018794,2]
[373227475,1752916256557,-500.0,0.00018794,2]
[373227476,1752916256566,-621.30279718,0.00018794,2]
[373227477,1752916256575,-500.0,0.00018794,2]
[373227478,1752916256585,-500.0,0.00018794,2]
[373227479,1752916256593,-500.0,0.00018794,2]
[373227480,1752916256605,-500.0,0.00018821,2]
[373227481,1752916256614,-501.03498526,0.0001885,2]
[373227482,1752916256624,-501.51231209,0.0001885,2]
[373227483,1752916256633,-500.0,0.00018859,2]
[373227484,1752916256642,-500.27443268,0.00018859,2]
[373227485,1752916256652,-6108.5604731,0.00018866,2]
[373227486,1752916256661,-302.9394212,0.000189,2]
[373227487,1752916256671,-1116.44556607,0.000189,2]
[373227488,1752916256682,-151.0,0.00019,2]
[373227489,1752916256691,-500.0,0.00019021,2]
[373227490,1752916256701,-800.0,0.00019035,2]
[373227491,1752916256711,-309.08056786,0.00019048,2]
[373227492,1752916256720,-5133.69,0.00019048,2]
[373227493,1752916256729,-460.0,0.00019049,2]
[373227494,1752916256739,-460.0,0.00019049,2]
[373227495,1752916256749,-2916.31,0.00019049,2]
[373227496,1752916256762,-2071.08,0.00019049,2]
[373227497,1752916256772,-677.36,0.00019049,2]
[373227498,1752916256781,-460.0,0.00019049,2]
[373227499,1752916256791,-2419.91,0.00019049,2]
[373227500,1752916256801,-460.0,0.00019049,2]
[373227501,1752916256812,-460.0,0.00019049,2]
[373227502,1752916256822,-1354.34,0.00019049,2]
[373227503,1752916256831,-1223.81,0.00019049,2]
[373227504,1752916256841,-460.0,0.00019049,2]
[373227505,1752916256851,-460.0,0.00019049,2]
[373227506,1752916256860,-551.44,0.00019049,2]
[373227507,1752916256870,-1938.71,0.00019049,2]
[373227508,1752916256880,-472.36,0.00019049,2]
[373227509,1752916256891,-460.0,0.00019049,2]
[373227510,1752916256901,-744.37,0.00019049,2]
[373227511,1752916256911,-460.0,0.0001905,2]
[373227512,1752916256921,-460.0,0.0001905,2]
[373227513,1752916256930,-460.0,0.0001905,2]
[373227514,1752916256941,-151.0,0.0001905,2]
[373227515,1752916256950,-460.0,0.0001905,2]
[373227516,1752916256961,-460.0,0.0001905,2]
[373227517,1752916256971,-460.0,0.0001905,2]
[373227518,1752916256981,-415.150377,0.0001905,2]
[373227519,1752916256990,-415.150377,0.0001905,2]
[373227520,1752916256999,-460.0,0.0001905,2]
[373227521,1752916257009,-514.48,0.0001905,2]
[373227522,1752916257019,-151.0,0.0001905,2]
[373227523,1752916257030,-460.0,0.0001905,2]
[373227524,1752916257040,-460.0,0.0001905,2]
[373227525,1752916257050,-3376.62,0.0001905,2]
[373227526,1752916257060,-512.86,0.0001905,2]
[373227527,1752916257069,-935.98,0.0001905,2]
[373227528,1752916257078,-460.0,0.0001905,2]
[373227529,1752916257087,-460.0,0.0001905,2]
[373227530,1752916257099,-1358.61,0.0001905,2]
[373227531,1752916257109,-460.0,0.0001905,2]
[373227532,1752916257118,-460.0,0.00019051,2]
[373227533,1752916257128,-460.0,0.00019051,2]
[373227534,1752916257139,-820.72,0.00019051,2]
[373227535,1752916257148,-460.0,0.00019051,2]
[373227536,1752916257158,-1223.5,0.00019051,2]
[373227537,1752916257168,-1245.9,0.00019051,2]
[373227538,1752916257177,-460.0,0.00019051,2]
[373227539,1752916257187,-665.09,0.00019051,2]
[373227540,1752916257196,-460.0,0.00019051,2]
[373227541,1752916257205,-769.32,0.00019051,2]
[373227542,1752916257214,-1239.35,0.00019051,2]
[373227543,1752916257227,-460.0,0.00019051,2]
[373227544,1752916257236,-460.0,0.00019051,2]
[373227545,1752916257245,-460.0,0.00019051,2]
[373227546,1752916257255,-1133.93,0.00019051,2]
[373227547,1752916257265,-460.0,0.00019051,2]
[373227548,1752916257275,-460.0,0.00019051,2]
[373227549,1752916257286,-460.0,0.00019052,2]
[373227550,1752916257295,-302.9394212,0.00019089,2]
[373227551,1752916257306,-6108.5604731,0.00019107,2]
[373227552,1752916257317,-151.0,0.00019178,2]
[373227553,1752916257327,-800.0,0.00019178,2]
[373227554,1752916257336,-646.68071285,0.00019178,2]
[373227555,1752916257347,-151.0,0.00019178,2]
[373227556,1752916257356,-151.0,0.00019178,2]
[373227557,1752916257366,-151.0,0.00019178,2]
[373227558,1752916257376,-349.723635,0.00019178,2]
[373227559,1752916257387,-5000.0,0.00019178,2]
[373227560,1752916257396,-5000.0,0.00019178,2]
[373227561,1752916257406,-2102.9928359,0.00019178,2]
[373227562,1752916257416,-1616.39609312,0.00019216,2]
[373227563,1752916257507,-1000.0,0.00019216,2]
[373227564,1752916257517,-2000.0,0.00019216,2]
[373227565,1752916257527,-2000.0,0.00019216,2]
[373227566,1752916257536,-256.42884549,0.00019233,2]
[373227567,1752916257547,-151.0,0.00019273,2]
[373227568,1752916257556,-151.0,0.00019273,2]
[373227569,1752916257566,-151.0,0.00019273,2]
[373227570,1752916257575,-302.9394212,0.00019278,2]
[373227571,1752916257585,-152.06639,0.00019299,2]
[373227572,1752916257594,-151.0,0.000193,2]
[373227573,1752916257605,-151.0,0.000193,2]
[373227574,1752916257615,-151.0,0.000193,2]
[373227575,1752916257625,-151.0,0.000193,2]
[373227576,1752916257636,-460.0,0.00019301,2]
[373227577,1752916257646,-153.0,0.00019315,2]
[373227578,1752916257656,-153.0,0.00019315,2]
[373227579,1752916257665,-153.0,0.00019315,2]
[373227580,1752916257675,-153.0,0.00019315,2]
[373227581,1752916257686,-153.0,0.00019315,2]
[373227582,1752916257697,-5133.69,0.00019322,2]
[373227583,1752916257707,-165.24546731,0.00019323,2]
[373227584,1752916257718,-460.0,0.00019323,2]
[373227585,1752916257728,-2916.31,0.00019323,2]
[373227586,1752916257737,-2071.08,0.00019323,2]
[373227587,1752916257747,-677.36,0.00019323,2]
[373227588,1752916257756,-460.0,0.00019323,2]
[373227589,1752916257766,-2419.91,0.00019323,2]
[373227590,1752916257776,-460.0,0.00019323,2]
[373227591,1752916257786,-460.0,0.00019323,2]
[373227592,1752916257795,-1223.81,0.00019323,2]
[373227593,1752916257805,-1354.34,0.00019323,2]
[373227594,1752916257815,-460.0,0.00019323,2]
[373227595,1752916257825,-460.0,0.00019323,2]
[373227596,1752916257835,-551.44,0.00019323,2]
[373227597,1752916257846,-1938.71,0.00019323,2]
[373227598,1752916257858,-472.36,0.00019323,2]
[373227599,1752916257868,-460.0,0.00019323,2]
[373227600,1752916257878,-744.37,0.00019323,2]
[373227601,1752916257888,-460.0,0.00019324,2]
[373227602,1752916257910,-460.0,0.00019324,2]
[373227603,1752916257925,-460.0,0.00019324,2]
[373227604,1752916257934,-460.0,0.00019324,2]
[373227605,1752916257944,-514.48,0.00019324,2]
[373227606,1752916257953,-460.0,0.00019324,2]
[373227607,1752916257963,-460.0,0.00019324,2]
[373227608,1752916257972,-3376.62,0.00019324,2]
[373227609,1752916257982,-512.86,0.00019324,2]
[373227610,1752916257991,-935.98,0.00019324,2]
[373227611,1752916258001,-151.0,0.00019324,2]
[373227612,1752916258011,-460.0,0.00019324,2]
[373227613,1752916258020,-460.0,0.00019324,2]
[373227614,1752916258029,-1358.61,0.00019324,2]
[373227615,1752916258038,-460.0,0.00019325,2]
[373227616,1752916258048,-460.0,0.00019325,2]
[373227617,1752916258057,-820.72,0.00019325,2]
[373227618,1752916258067,-460.0,0.00019325,2]
[373227619,1752916258076,-151.0,0.00019325,2]
[373227620,1752916258086,-1223.5,0.00019325,2]
[373227621,1752916258095,-1245.9,0.00019325,2]
[373227622,1752916258105,-151.0,0.00019325,2]
[373227623,1752916258115,-460.0,0.00019325,2]
[373227624,1752916258124,-665.09,0.00019325,2]
[373227625,1752916258134,-460.0,0.00019325,2]
[373227626,1752916258144,-418.298156,0.00019325,2]
[373227627,1752916258153,-769.32,0.00019325,2]
[373227628,1752916258162,-418.298156,0.00019325,2]
[373227629,1752916258172,-1239.35,0.00019325,2]
[373227630,1752916258181,-460.0,0.00019325,2]
[373227631,1752916258191,-460.0,0.00019325,2]
[373227632,1752916258200,-460.0,0.00019325,2]
[373227633,1752916258209,-1133.93,0.00019325,2]
[373227634,1752916258221,-460.0,0.00019325,2]
[373227635,1752916258231,-460.0,0.00019325,2]
[373227636,1752916258240,-460.0,0.00019326,2]
[373227637,1752916258250,-151.0,0.00019326,2]
[373227638,1752916258260,-151.0,0.00019329,2]
[373227639,1752916258270,-151.0,0.00019329,2]
[373227640,1752916258280,-151.0,0.00019329,2]
[373227641,1752916258290,-270.138267,0.00019329,2]
[373227642,1752916258300,-91656.59751799,0.00019329,2]
[373227643,1752916258309,-1000.0,0.00019342,2]
[373227644,1752916258319,-6108.5604731,0.00019348,2]
[373227645,1752916258329,-1000.0,0.00019369,2]
[373227646,1752916258338,-500.0,0.00019373,2]
[373227647,1752916258348,-500.0,0.00019373,2]
[373227648,1752916258358,-500.0,0.00019373,2]
[373227649,1752916258367,-500.0,0.00019373,2]
[373227650,1752916258377,-500.0,0.00019373,2]
[373227651,1752916258387,-158.093145,0.00019373,2]
[373227652,1752916258397,-500.0,0.00019373,2]
[373227653,1752916258407,-500.0,0.00019373,2]
[373227654,1752916258418,-500.0,0.00019373,2]
[373227655,1752916258427,-500.0,0.00019373,2]
[373227656,1752916258437,-500.0,0.00019373,2]
[373227657,1752916258447,-155.30225644,0.00019373,2]
[373227658,1752916258457,-501.04320037,0.00019373,2]
[373227659,1752916258467,-183.02253745,0.00019373,2]
[373227660,1752916258477,-500.0,0.00019373,2]
[373227661,1752916258487,-260.23750173,0.00019373,2]
[373227662,1752916258497,-500.0,0.00019373,2]
[373227663,1752916258506,-636.93253847,0.00019373,2]
[373227664,1752916258516,-500.0,0.00019373,2]
[373227665,1752916258525,-158.57634759,0.00019373,2]
[373227666,1752916258535,-500.0,0.00019373,2]
[373227667,1752916258544,-500.0,0.00019373,2]
[373227668,1752916258554,-500.0,0.00019373,2]
[373227669,1752916258563,-500.0,0.00019373,2]
[373227670,1752916258574,-500.0,0.00019373,2]
[373227671,1752916258584,-500.0,0.00019373,2]
[373227672,1752916258593,-500.0,0.00019373,2]
[373227673,1752916258602,-501.77846167,0.00019373,2]
[373227674,1752916258611,-500.0,0.00019373,2]
[373227675,1752916258620,-451.08326821,0.0001938,2]
[373227676,1752916258634,-900.0,0.00019389,2]
[373227677,1752916258644,-1000.0,0.00019407,2]
[373227678,1752916258654,-289.628152,0.00019452,2]
[373227679,1752916258665,-302.9394212,0.00019467,2]
[373227680,1752916258674,-160.174974,0.0001949,2]
[373227681,1752916258684,-160.15611363,0.0001949,2]
[373227682,1752916258694,-158.14108957,0.0001949,2]
[373227683,1752916258705,-500.0,0.0001949,2]
[373227684,1752916258715,-500.40877296,0.0001949,2]
[373227685,1752916258723,-6460.3028535,0.00019498,2]
[373227686,1752916258732,-500.0,0.00019517,2]
[373227687,1752916258742,-500.0,0.00019517,2]
[373227688,1752916258751,-500.0,0.00019517,2]
[373227689,1752916258762,-500.0,0.00019517,2]
[373227690,1752916258771,-500.0,0.00019517,2]
[373227691,1752916258783,-151.0,0.00019517,2]
[373227692,1752916258794,-500.0,0.00019517,2]
[373227693,1752916258803,-151.0,0.00019517,2]
[373227694,1752916258813,-500.0,0.00019517,2]
[373227695,1752916258824,-151.0,0.00019517,2]
[373227696,1752916258834,-500.0,0.00019517,2]
[373227697,1752916258843,-151.0,0.00019517,2]
[373227698,1752916258854,-500.0,0.00019517,2]
[373227699,1752916258864,-151.0,0.00019517,2]
[373227700,1752916258874,-151.0,0.00019517,2]
[373227701,1752916258884,-207.4,0.00019517,2]
[373227702,1752916258893,-500.0,0.00019517,2]
[373227703,1752916258903,-151.0,0.00019517,2]
[373227704,1752916258913,-500.0,0.00019517,2]
[373227705,1752916258922,-151.0,0.00019517,2]
[373227706,1752916258932,-500.0,0.00019517,2]
[373227707,1752916258941,-151.0,0.00019517,2]
[373227708,1752916258951,-500.0,0.00019517,2]
[373227709,1752916258960,-151.0,0.00019517,2]
[373227710,1752916258968,-500.0,0.00019517,2]
[373227711,1752916258979,-500.0,0.00019517,2]
[373227712,1752916258988,-151.0,0.00019517,2]
[373227713,1752916258998,-500.0,0.00019517,2]
[373227714,1752916259008,-151.0,0.00019517,2]
[373227715,1752916259017,-500.0,0.00019517,2]
[373227716,1752916259027,-163.07791065,0.00019517,2]
[373227717,1752916259135,-500.0,0.00019517,2]
[373227718,1752916259145,-623.70490575,0.00019517,2]
[373227719,1752916259154,-25000.0,0.00019517,2]
[373227720,1752916259164,-20949.39121932,0.00019517,2]
[373227721,1752916259173,-151.0,0.00019517,2]
[373227722,1752916259182,-151.0,0.00019517,2]
[373227723,1752916259191,-151.0,0.00019517,2]
[373227724,1752916259200,-151.0,0.00019517,2]
[373227725,1752916259209,-291.176967,0.00019517,2]
[373227726,1752916259219,-285.019285,0.00019517,2]
[373227727,1752916259232,-285.019285,0.00019517,2]
[373227728,1752916259242,-151.0,0.00019517,2]
[373227729,1752916259251,-1210.502323,0.00019517,2]
[373227730,1752916259260,-151.0,0.00019517,2]
[373227731,1752916259270,-151.0,0.00019517,2]
[373227732,1752916259279,-418.298156,0.00019517,2]
[373227733,1752916259289,-418.298156,0.00019517,2]
[373227734,1752916259299,-151.0,0.00019517,2]
[373227735,1752916259309,-151.0,0.00019517,2]
[373227736,1752916259318,-1000.0,0.00019569,2]
[373227737,1752916259327,-6108.5604731,0.0001959,2]
[373227738,1752916259337,-5133.69,0.00019596,2]
[373227739,1752916259346,-520.08,0.00019597,2]
[373227740,1752916259356,-2916.31,0.00019597,2]
[373227741,1752916259365,-2071.08,0.00019597,2]
[373227742,1752916259374,-677.36,0.00019597,2]
[373227743,1752916259383,-460.0,0.00019597,2]
[373227744,1752916259393,-2419.91,0.00019597,2]
[373227745,1752916259402,-460.0,0.00019597,2]
[373227746,1752916259412,-460.0,0.00019597,2]
[373227747,1752916259422,-1223.81,0.00019597,2]
[373227748,1752916259431,-1354.34,0.00019597,2]
[373227749,1752916259441,-460.0,0.00019597,2]
[373227750,1752916259451,-460.0,0.00019597,2]
[373227751,1752916259461,-551.44,0.00019597,2]
[373227752,1752916259472,-1938.71,0.00019597,2]
[373227753,1752916259481,-472.36,0.00019597,2]
[373227754,1752916259490,-460.0,0.00019597,2]
[373227755,1752916259500,-744.37,0.00019597,2]
[373227756,1752916259510,-460.0,0.00019598,2]
[373227757,1752916259519,-460.0,0.00019598,2]
[373227758,1752916259529,-460.0,0.00019598,2]
[373227759,1752916259538,-460.0,0.00019598,2]
[373227760,1752916259548,-514.48,0.00019598,2]
[373227761,1752916259557,-460.0,0.00019598,2]
[373227762,1752916259566,-460.0,0.00019598,2]
[373227763,1752916259575,-3376.62,0.00019598,2]
[373227764,1752916259586,-512.86,0.00019598,2]
[373227765,1752916259595,-935.98,0.00019598,2]
[373227766,1752916259605,-460.0,0.00019598,2]
[373227767,1752916259615,-460.0,0.00019598,2]
[373227768,1752916259624,-1358.61,0.00019598,2]
[373227769,1752916259633,-460.0,0.00019599,2]
[373227770,1752916259643,-151.0,0.00019599,2]
[373227771,1752916259652,-460.0,0.00019599,2]
[373227772,1752916259661,-820.72,0.00019599,2]
[373227773,1752916259670,-460.0,0.00019599,2]
[373227774,1752916259680,-293.036372,0.00019599,2]
[373227775,1752916259689,-293.036372,0.00019599,2]
[373227776,1752916259698,-345.030276,0.00019599,2]
[373227777,1752916259707,-345.030276,0.00019599,2]
[373227778,1752916259716,-1223.5,0.00019599,2]
[373227779,1752916259724,-1245.9,0.00019599,2]
[373227780,1752916259733,-460.0,0.00019599,2]
[373227781,1752916259742,-665.09,0.00019599,2]
[373227782,1752916259751,-460.0,0.00019599,2]
[373227783,1752916259760,-769.32,0.00019599,2]
[373227784,1752916259770,-1239.35,0.00019599,2]
[373227785,1752916259779,-460.0,0.00019599,2]
[373227786,1752916259787,-460.0,0.00019599,2]
[373227787,1752916259796,-460.0,0.00019599,2]
[373227788,1752916259805,-1133.93,0.00019599,2]
[373227789,1752916259824,-460.0,0.00019599,2]
[373227790,1752916259841,-460.0,0.00019599,2]
[373227791,1752916259857,-460.0,0.000196,2]
[373227792,1752916259874,-151.0,0.000196,2]
[373227793,1752916259890,-151.0,0.000196,2]
[373227794,1752916259909,-151.0,0.000196,2]
[373227795,1752916259926,-151.0,0.000196,2]
[373227796,1752916259942,-151.0,0.000196,2]
[373227797,1752916259979,-151.0,0.000196,2]
[373227798,1752916259997,-1875.27,0.000196,2]
[373227799,1752916260015,-415.150377,0.000196,2]
[373227800,1752916260034,-415.150377,0.000196,2]
[373227801,1752916260054,-151.0,0.000196,2]
[373227802,1752916260075,-264.855,0.00019611,2]
[373227803,1752916260097,-302.9394212,0.00019656,2]
[373227804,1752916260111,-3527.32,0.00019689,2]
[373227805,1752916260127,-800.0,0.00019712,2]
[373227806,1752916260148,-5000.0,0.00019742,2]
[373227807,1752916260161,-500.0,0.00019744,2]
[373227808,1752916260181,-501.19526284,0.00019744,2]
[373227809,1752916260195,-580.27611921,0.00019744,2]
[373227810,1752916260211,-500.0,0.00019744,2]
[373227811,1752916260231,-500.0,0.00019744,2]
[373227812,1752916260248,-500.0,0.00019744,2]
[373227813,1752916260265,-500.0,0.00019744,2]
[373227814,1752916260280,-501.47511624,0.00019744,2]
[373227815,1752916260295,-500.0,0.00019744,2]
[373227816,1752916260311,-500.0,0.00019744,2]
[373227817,1752916260326,-500.0,0.00019744,2]
[373227818,1752916260340,-519.1931582,0.00019744,2]
[373227819,1752916260356,-500.0,0.00019744,2]
[373227820,1752916260370,-500.0,0.00019744,2]
[373227821,1752916260384,-500.0,0.00019744,2]
[373227822,1752916260398,-386.60069791,0.00019744,2]
[373227823,1752916260412,-153.76583206,0.00019744,2]
[373227824,1752916260427,-500.0,0.00019744,2]
[373227825,1752916260441,-500.0,0.00019744,2]
[373227826,1752916260454,-2367.6100132,0.00019764,2]
[373227827,1752916260468,-1500.0,0.00019764,2]
[373227828,1752916260481,-7299.98262913,0.00019772,2]
[373227829,1752916260494,-4000.0,0.00019796,2]
[373227830,1752916260508,-151.0,0.00019796,2]
[373227831,1752916260521,-218.063064,0.00019796,2]
[373227832,1752916260534,-218.063064,0.00019796,2]
[373227833,1752916260547,-151.0,0.00019796,2]
[373227834,1752916260560,-151.0,0.00019796,2]
[373227835,1752916260573,-151.0,0.00019796,2]
[373227836,1752916260586,-151.0,0.00019796,2]
[373227837,1752916260600,-587.0,0.00019797,2]
[373227838,1752916260613,-160.87106772,0.00019821,2]
[373227839,1752916260626,-1752.0,0.00019821,2]
[373227840,1752916260639,-1752.0,0.00019821,2]
[373227841,1752916260653,-1752.0,0.00019821,2]
[373227842,1752916260666,-1752.0,0.00019821,2]
[373227843,1752916260679,-1752.0,0.00019821,2]
[373227844,1752916260693,-1752.0,0.00019821,2]
[373227845,1752916260706,-1752.0,0.00019821,2]
[373227846,1752916260719,-155.38041295,0.00019821,2]
[373227847,1752916260732,-1752.0,0.00019821,2]
[373227848,1752916260745,-154.0,0.00019821,2]
[373227849,1752916260758,-702.10688905,0.00019821,2]
[373227850,1752916260771,-1752.0,0.00019821,2]
[373227851,1752916260784,-320.62303053,0.00019821,2]
[373227852,1752916260797,-324.0,0.00019821,2]
[373227853,1752916260809,-324.0,0.00019821,2]
[373227854,1752916260822,-151.0,0.00019821,2]
[373227855,1752916260836,-4000.0,0.00019826,2]
[373227856,1752916260850,-6108.5604731,0.00019831,2]
[373227857,1752916260865,-454.40913181,0.00019845,4]
[373227858,1752916260876,-560.0,0.00019849,2]
[373227859,1752916261024,-153.0,0.00019863,2]
[373227860,1752916261038,-5000.0,0.00019865,2]
[373227861,1752916261049,-5133.69,0.0001987,2]
[373227862,1752916261059,-2916.31,0.00019871,2]
[373227863,1752916261070,-2071.08,0.00019871,2]
[373227864,1752916261080,-677.36,0.00019871,2]
[373227865,1752916261092,-460.0,0.00019871,2]